[Event "35th Staufer-Open-A 2025"]
[Site "Schwaebisch Gmuend"]
[Date "2025.01.05"]
[Round "8.9"]
[White "Degenhard, Simon"]
[Black "Vuckovic, Zarko"]
[Result "0-1"]
[ECO "C95"]
[WhiteElo "2241"]
[BlackElo "2344"]
[Annotator "TA"]
[PlyCount "270"]
[EventDate "2024.11.24"]
[EventType "swiss"]
[EventCountry "GER"]
[SourceTitle "playchess.com"]
[Source "ChessBase"]
[SourceQuality "1"]
[TimeControl "40/6000+30:1200+30"]

{[%evp 135,270,0,0,0,0,-1,-7,-23,-23,-23,-23,-23,-23,-23,-23,-23,-23,-23,-23,-23,-23,-23,-23,-23,-23,-56,-49,-77,-77,-77,-63,-104,-59,-88,-43,-60,-46,-68,-66,-92,-58,-131,-98,-104,-85,-103,-89,-104,-105,-102,-104,-101,-102,-102,-110,-114,-104,-114,-106,-104,0,-97,-58,-102,-84,-89,-87,-101,-95,-110,-110,-263,-237,-222,-222,-337,-337,-329,-179,-322,-315,-305,-282,-300,-270,-172,-110,-110,-110,-110,-110,-110,-110,-110,-110,-110,-110,-110,-110,-117,-110,-110,-110,-110,-110,-110,-110,-110,-6,-8,0,-110,-110,-110,-110,-110,-110,-110,-99,-110,-110,-100,-100,-110,-100,-110,-110,-154,-157,-185,-164,-29978,-29979,-29979,-29980,-29978,-29978]} 1. e4 {[%emt 0:00:03]} e5 {[%emt 0:00:06]} 2. Nf3 {[%emt 0:00:09]} Nc6 {[%emt 0:00:13]} 3. Bb5 {[%emt 0:00:04]} a6 {[%emt 0:00:03]} 4. Ba4 {[%emt 0:00:08]} Nf6 {[%emt 0:00:14]} 5. O-O {[%emt 0:00:09]} Be7 {[%emt 0:00:04]} 6. Re1 {[%emt 0:00:07]} b5 {[%emt 0:00:03]} 7. Bb3 {[%emt 0:00:05]} d6 {[%emt 0:00:04]} 8. c3 {[%emt 0:00:05]} O-O {[%emt 0:00:05]} 9. h3 {[%emt 0:00:05]} Nb8 {[%emt 0:00:13]} 10. d4 {[%emt 0:00:09]} Nbd7 {[%emt 0:00:04]} 11. Nbd2 {[%emt 0:00:11]} Bb7 {[%emt 0:00:05]} 12. Bc2 {[%emt 0:00:09]} Re8 {[%emt 0:00:06]} 13. Nf1 {[%emt 0:00:17]} Bf8 {[%emt 0:00:05]} 14. Ng3 {[%emt 0:00:06]} g6 {[%emt 0:00:06]} 15. a4 {[%emt 0:00:06]} c5 {[%emt 0:00:07] 15...Bg7 might become the main line.} 16. d5 {[%emt 0:00:07]} c4 {[%emt 0:00:04]} 17. Bg5 {[%emt 0:00:09]} Nc5 {[%emt 0:00:12] C95: Closed Ruy Lopez: Breyer Variation with 10 d4.} 18. Nh2 {[%emt 0:13:41]} h6 {[%emt 0:22:03]} 19. Be3 {[%emt 0:01:25]} Bg7 {[%emt 0:00:05]} 20. Qd2 {[%emt 0:00:22]} Kh7 {[%emt 0:00:22]} 21. Rf1 {[%emt 0:00:56]} Rf8 {[%emt 0:21:39]} 22. f4 {[%emt 0:03:04]} exf4 {[%emt 0:00:04]} 23. Rxf4 {[%emt 0:00:21]} Ncd7 {[%emt 0:00:28]} 24. Raf1 {[%emt 0:04:38]} Ne5 {[%emt 0:06:09]} 25. Nf3 {[%emt 0:08:41]} Nfd7 {[%emt 0:02:36]} 26. Nd4 {[%emt 0:04:07]} Nc5 $146 {[%emt 0:07:16]} ({Predecessor:} 26... bxa4 27. Ngf5 gxf5 28. Nxf5 Ng6 29. R4f2 Be5 30. Bxa4 Nf6 31. Bb6 Nxe4 32. Qxh6+ Kg8 33. Bxd8 Raxd8 34. Rf4 Bxd5 35. Rh4 Rfe8 36. Bxe8 Rxe8 37. Qh7+ Kf8 38. Rxe4 {1-0 Luther,T (2580)-Zude,A (2382) Bayern-chI Bank Hofmann 7th 2003 (6)}) 27. axb5 {[%emt 0:05:03]} axb5 {[%emt 0:01:16]} 28. Nxb5 {[%emt 0:02:36]} Bc8 {[%emt 0:04:24]} 29. Nd4 {[%emt 0:02:34]} Bd7 {[%emt 0:01:04]} 30. b4 {[%emt 0:08:20]} cxb3 {[%emt 0:01:21]} 31. Nxb3 {[%emt 0:00:32]} Nc4 {[%emt 0:04:33]} 32. Qe2 {[%emt 0:02:32]} Nxe3 {[%emt 0:00:16]} 33. Qxe3 {[%emt 0:00:20]} Nxb3 {[%emt 0:01:39]} 34. Bxb3 {[%emt 0:00:07]} Qe7 {[%emt 0:00:49]} 35. Ne2 {[%emt 0:07:03]} Bb5 {[%emt 0:04:39]} 36. c4 {[%emt 0:04:33]} Be8 {[%emt 0:01:55]} 37. R4f3 {[%emt 0:06:28]} Ra3 {[%emt 0:04:11]} 38. Qc1 {[%emt 0:05:31]} Qa7+ {[%emt 0:10:17]} 39. Kh1 {[%emt 0:01:16]} Ra1 {[%emt 0:00:31]} 40. Qc2 {[%emt 0:01:26]} Bd7 {[%emt 0:01:06]} 41. Rxa1 {[%emt 0:23:33]} Qxa1+ {[%emt 0:22:48]} 42. Qc1 {[%emt 0:01:20]} Qe5 {[%emt 0:01:06]} 43. Qf4 {[%emt 0:02:59]} Kg8 {[%emt 0:04:36]} 44. Qxe5 {[%emt 0:08:29]} Bxe5 {[%emt 0:00:06]} 45. g4 {[%emt 0:09:11]} Kg7 {[%emt 0:00:57]} 46. Kg2 {[%emt 0:03:58]} Rh8 {[%emt 0:01:33]} 47. Nf4 {[%emt 0:01:47]} Rb8 {[%emt 0:00:14]} 48. Ne2 {[%emt 0:01:49]} Be8 {[%emt 0:02:16]} 49. Kf2 {[%emt 0:00:17]} Kf8 {[%emt 0:04:28]} 50. Ke1 {[%emt 0:00:36]} Ke7 {[%emt 0:01:24]} 51. Kd2 {[%emt 0:02:00]} Ra8 {[%emt 0:02:18]} 52. Kc2 {[%emt 0:00:00]} Ra1 {[%emt 0:00:00]} 53. Nc1 {[%emt 0:00:00]} Bd4 {[%emt 0:00:00]} 54. Rd3 {[%emt 0:00:00]} Be5 {[%emt 0:00:00]} 55. Rf3 {[%emt 0:00:00]} Ra5 {[%emt 0:00:00]} 56. Nd3 {[%emt 0:00:00]} Bd4 {[%emt 0:00:00]} 57. Rf1 {[%emt 0:00:00]} g5 {[%emt 0:00:00]} 58. Nb4 {[%emt 0:00:00]} f6 {[%emt 0:00:00]} 59. Rd1 {[%emt 0:00:00]} Bc5 {[%emt 0:00:00]} 60. Nd3 {[%emt 0:00:00]} Be3 {[%emt 0:01:03]} 61. Re1 {[%emt 0:00:00]} Bd4 {[%emt 0:00:04]} 62. Nb4 {[%emt 0:00:00]} Ra8 {[%emt 0:00:11]} 63. Rd1 {[%emt 0:00:00]} Bc5 {[%emt 0:00:06]} 64. Nd3 {[%emt 0:00:00]} Be3 {[%emt 0:00:06]} 65. Re1 {[%emt 0:00:00]} Bd4 {[%emt 0:00:05]} 66. Nb4 {[%emt 0:00:00]} Bf2 {[%emt 0:00:55]} 67. Rf1 {[%emt 0:00:26]} Bc5 {[%emt 0:00:14]} 68. Nd3 {[%emt 0:00:57]} ({Less strong is} 68. Nc6+ $18) 68... Bd4 {[%emt 0:04:48]} 69. Nb4 {[%emt 0:00:06]} Bd7 {[%emt 0:00:04]} 70. Rd1 {[%emt 0:00:51]} Bc5 {[%emt 0:01:27]} 71. Nc6+ {[%emt 0:06:12]} Bxc6 {[%emt 0:01:14]} 72. dxc6 {[%emt 0:00:02]} Ra6 {[%emt 0:00:08]} 73. Rd5 {[%emt 0:01:15]} Rxc6 {[%emt 0:00:09]} 74. Ba4 {[%emt 0:00:07]} Ra6 {[%emt 0:00:10]} 75. Kb3 {[%emt 0:00:11]} Ke6 {[%emt 0:00:43]} 76. Rf5 {[%emt 0:00:56]} Ra7 {[%emt 0:00:55]} 77. Rf3 {[%emt 0:01:53]} Ra8 {[%emt 0:00:46]} 78. Rd3 {[%emt 0:00:45]} Rb8+ {[%emt 0:00:41]} 79. Bb5 {[%emt 0:00:26]} Ke5 {[%emt 0:00:11]} 80. Kc3 {[%emt 0:00:45]} Rb6 {[%emt 0:01:28]} ({Of course not} 80... Kxe4 81. Bc6+ Ke5 82. Rd5+ Ke6 83. Rf5 $11) 81. Rf3 {[%emt 0:01:14]} Kxe4 {[%emt 0:00:20]} 82. Rf1 {[%emt 0:00:01]} d5 {[%emt 0:00:26]} 83. Re1+ {[%emt 0:01:08]} Be3 {[%emt 0:01:12]} 84. Rd1 {[%emt 0:00:32]} dxc4 {[%emt 0:01:51]} ({Much weaker is} 84... d4+ $6 85. Kc2 $11) 85. Bxc4 {[%emt 0:00:23]} Kf4 {[%emt 0:00:09]} 86. Bf1 {[%emt 0:00:59]} Kf3 {[%emt 0:00:16]} 87. Rd5 {[%emt 0:00:06]} Kf2 {[%emt 0:00:13]} 88. Rd1 {[%emt 0:00:35]} (88. Bb5 $15) 88... Bf4 {[%emt 0:00:39]} 89. Kc4 {[%emt 0:00:28]} Rb8 {[%emt 0:00:23]} 90. Ra1 {[%emt 0:00:18]} Rd8 {[%emt 0:00:18]} 91. Rb1 {[%emt 0:00:25]} Be5 {[%emt 0:00:10]} 92. Kc5 {[%emt 0:00:20]} Rd2 {[%emt 0:00:22]} 93. Kc4 {[%emt 0:00:34]} Kg3 {[%emt 0:00:56]} 94. Kc5 {[%emt 0:00:31]} Kh4 {[%emt 0:00:19]} 95. Re1 {[%emt 0:00:28]} Rd8 {[%emt 0:01:28]} 96. Kc4 {[%emt 0:00:41]} Kg3 {[%emt 0:00:57]} 97. Kc5 {[%emt 0:00:15]} Kf2 {[%emt 0:00:04]} 98. Rb1 {[%emt 0:00:10]} Rd4 {[%emt 0:00:21]} 99. Rc1 {[%emt 0:00:26]} Re4 {[%emt 0:00:05]} 100. Kd5 {[%emt 0:00:19] [#]} Re3 $1 {[%emt 0:00:06]} 101. Rd1 {[%emt 0:00:26]} Bc3 {[%emt 0:00:33]} 102. Bd3 {[%emt 0:01:53]} Rxh3 {[%emt 0:00:24]} 103. Ke4 $2 {[%emt 0:00:34]} (103. Bg6 $17) 103... h5 $19 {[%emt 0:01:16]} 104. gxh5 {[%emt 0:00:16]} Rxh5 {[%emt 0:00:32]} 105. Kf5 {[%emt 0:00:02]} (105. Rf1+ $142 Kg2 106. Rc1) 105... Rh4 $19 {[%emt 0:00:12]} 106. Rf1+ {[%emt 0:00:23]} Ke3 {[%emt 0:00:15]} (106... Kg2 $142 {...Be5 is the strong threat.} 107. Rc1 Rf4+ 108. Kg6 Be5 109. Rc2+ Kf3) 107. Ba6 {[%emt 0:00:30]} (107. Bb5 {is the only way for White.}) 107... Rb4 {[%emt 0:00:20]} 108. Rg1 {[%emt 0:00:18]} Rf4+ {[%emt 0:00:08]} 109. Kg6 {[%emt 0:00:21]} Be5 {[%emt 0:01:20]} 110. Bc8 {[%emt 0:00:12]} Bd4 {[%emt 0:00:25]} (110... Kf3 $19 {And now ...Rb4 would win.} 111. Rc1 Rb4) 111. Rg3+ {[%emt 0:00:35]} Ke2 {[%emt 0:00:20]} 112. Rg2+ {[%emt 0:01:06]} Kd3 {[%emt 0:01:18]} 113. Rg3+ {[%emt 0:00:17]} Kc4 {[%emt 0:00:03]} 114. Rg4 {[%emt 0:00:58]} Rf2 {[%emt 0:00:06]} 115. Rg1 {[%emt 0:00:40]} Kd5 {[%emt 0:00:39]} 116. Re1 {[%emt 0:00:17]} Rf4 {[%emt 0:00:21]} 117. Bb7+ {[%emt 0:00:21]} Kc5 {[%emt 0:00:05]} 118. Re4 {[%emt 0:00:19]} Rf2 {[%emt 0:00:18]} 119. Bc8 {[%emt 0:00:10]} Kc4 {[%emt 0:01:19]} 120. Re1 {[%emt 0:00:53]} Rf4 {[%emt 0:00:21]} 121. Re2 {[%emt 0:00:16]} Bf2 {[%emt 0:01:03]} ({Black should play} 121... Kc5 $17 122. Bf5 Be5) 122. Re6 $11 {[%emt 0:00:48]} Bd4 {[%emt 0:00:42]} ({Black should try} 122... Rd4 $11) 123. Re2 $1 $17 {[%emt 0:00:01]} Kc3 {[%emt 0:00:05]} 124. Bd7 {[%emt 0:00:47]} Kb4 {[%emt 0:01:18]} 125. Bc8 {[%emt 0:00:25]} Kb5 {[%emt 0:00:19]} 126. Bd7+ {[%emt 0:00:33]} Kb6 {[%emt 0:00:09]} 127. Bc8 {[%emt 0:00:45]} Be5 {[%emt 0:00:03]} 128. Rc2 {[%emt 0:00:57]} Kb5 {[%emt 0:00:52]} 129. Bd7+ {[%emt 0:00:11]} Ka5 {[%emt 0:00:05]} 130. Ra2+ {[%emt 0:00:28]} Kb6 {[%emt 0:00:12]} 131. Rc2 {[%emt 0:00:30]} Rd4 {[%emt 0:00:06]} 132. Be6 {[%emt 0:00:37]} g4 {[%emt 0:00:42]} 133. Rc4 $2 {[%emt 0:01:09]} (133. Ba2 $19) 133... Rxc4 {[%emt 0:00:04]} 134. Bxc4 {[%emt 0:00:02]} Kc5 {[%emt 0:00:05]} 135. Ba6 {[%emt 0:00:18]} Kd4 {[%emt 0:00:12]} 0-1

[Event "35th Staufer-Open-A 2025"]
[Site "Schwaebisch Gmuend"]
[Date "2025.01.05"]
[Round "8.10"]
[White "Ferster, Fabian"]
[Black "Ehmann, Thilo"]
[Result "1-0"]
[ECO "A20"]
[WhiteElo "2231"]
[BlackElo "2335"]
[Annotator "TA"]
[PlyCount "65"]
[EventDate "2024.11.24"]
[EventType "swiss"]
[EventCountry "GER"]
[SourceTitle "playchess.com"]
[Source "ChessBase"]
[SourceQuality "1"]
[TimeControl "40/6000+30:1200+30"]

{[%evp 11,65,27,32,27,26,16,19,9,31,13,32,24,20,3,37,57,84,85,120,60,120,40,52,43,86,75,69,88,75,25,36,0,0,0,15,-39,-33,-42,-26,-45,-27,-91,-46,-70,-69,-48,-48,-43,-31,-8,331,319,1191,1185,1096,1070]} 1. c4 {[%emt 0:00:03]} Nf6 {[%emt 0:01:21]} 2. g3 {[%emt 0:00:28]} e5 {[%emt 0:00:20][%cal Be7e5,Be5e4][%mdl 32]} 3. Bg2 {[%emt 0:00:11]} c6 {[%emt 0:00:33]} 4. Nf3 {[%emt 0:00:52]} e4 {[%emt 0:00:23]} 5. Nd4 {[%emt 0:00:08]} d5 {[%emt 0:00:02]} 6. cxd5 {[%emt 0:01:27]} Qxd5 {[%emt 0:00:05]} 7. e3 {[%emt 0:00:29]} Qe5 {[%emt 0:00:11]} 8. f4 {[%emt 0:01:10]} exf3 {[%emt 0:00:14]} 9. Nxf3 {[%emt 0:00:11]} Qh5 {[%emt 0:00:16]} 10. O-O {[%emt 0:00:33][%cal Oe3e4]} Be7 {[%emt 0:00:27]} 11. Nc3 {[%emt 0:01:14]} O-O {[%emt 0:00:23]} 12. d4 {[%emt 0:00:17]} Nbd7 {[%emt 0:02:50]} 13. e4 {[%emt 0:04:17]} Nb6 {[%emt 0:01:23]} 14. a4 {[%emt 0:00:10]} a5 {[%emt 0:01:05]} 15. Qb3 {[%emt 0:00:45]} (15. Ne2 $16) 15... Ra6 {[%emt 0:02:48]} (15... Bb4 $14) 16. Bf4 {[%emt 0:08:26]} (16. Nh4 $16) 16... Be6 $14 {[%emt 0:00:55]} 17. Qc2 {[%emt 0:00:07]} Bh3 {[%emt 0:10:24]} 18. Rae1 {[%emt 0:18:37]} Nfd7 {[%emt 0:06:20]} 19. Bxh3 {[%emt 0:08:20]} Qxh3 {[%emt 0:00:27]} 20. Qb3 {[%emt 0:00:35]} (20. Nd1 $16) 20... h6 {[%emt 0:08:15]} 21. Kh1 {[%emt 0:04:11]} Bb4 {[%emt 0:03:28]} 22. Bd2 {[%emt 0:22:47]} Qe6 {[%emt 0:15:54]} 23. d5 {[%emt 0:03:05]} ({White should try} 23. Qc2 $11) 23... cxd5 $15 {[%emt 0:02:48]} 24. exd5 {[%emt 0:03:07]} Qd6 {[%emt 0:01:11]} 25. Rd1 {[%emt 0:07:44]} Qc5 {[%emt 0:13:49]} 26. Bc1 {[%emt 0:05:33]} (26. Nh4 $11 {keeps the balance.}) 26... Bxc3 {[%emt 0:04:18]} 27. bxc3 {[%emt 0:00:18] and Ba3 should not be overlooked} Rc8 {[%emt 0:00:26]} 28. Nh4 {[%emt 0:04:59]} Qxc3 {[%emt 0:09:28]} (28... Qc4 {simplifies} 29. Qxc4 Rxc4 30. Nf5 Nxa4 31. Rde1 Nac5) 29. Qb5 {[%emt 0:00:09]} Re8 {[%emt 0:02:02] ...Qc2 would now be deadly.} 30. Nf5 {[%emt 0:02:04][%cal Oc1h6]} Qb4 $2 {[%emt 0:00:56][%mdl 8192] [#]} (30... Qc2 $11 {and Black has nothing to worry.} 31. Rd4 Re2) 31. Rd4 $1 $18 {[%emt 0:03:30]} Re1 $2 {[%emt 0:04:21]} (31... Qxb5 32. axb5 Raa8) 32. Rxb4 {[%emt 0:00:47]} Rxf1+ {[%emt 0:00:09]} 33. Qxf1 {[%emt 0:00:24]} 1-0

[Event "35th Staufer-Open-A 2025"]
[Site "Schwaebisch Gmuend"]
[Date "2025.01.05"]
[Round "8.11"]
[White "Melestean, Timur"]
[Black "Velicka, Petr"]
[Result "0-1"]
[ECO "D33"]
[WhiteElo "2157"]
[BlackElo "2332"]
[Annotator "TA"]
[PlyCount "150"]
[EventDate "2024.11.24"]
[EventType "swiss"]
[EventCountry "GER"]
[SourceTitle "playchess.com"]
[Source "ChessBase"]
[SourceQuality "1"]
[TimeControl "40/6000+30:1200+30"]

{[%evp 39,150,39,51,56,59,34,28,16,18,0,20,13,22,21,19,6,77,77,157,0,7,0,0,0,0,0,0,-109,0,0,0,0,0,0,0,0,0,0,0,0,0,0,0,0,0,-8,-4,-28,-28,-28,-34,-44,0,0,0,0,0,0,0,-9,0,-127,-134,-150,-42,-42,-50,-672,-339,-615,-614,-822,-797,-753,-408,-461,-327,-12798,-2469,-29957,-29958,-29962,-29965,-29970,-29971,-29971,-29972,-29971,-29973,-29974,-29976,-29975,-29972,-29972,0,-29960,-29964,-29984,-29985,-29988,-29989,-29989,-29981,-29990,-29991,-29991,-29992,-29993,-29994,-29994,-29995,-29995,-29996]} 1. d4 {[%emt 0:00:01]} Nf6 {[%emt 0:00:05]} 2. c4 {[%emt 0:00:04]} e6 {[%emt 0:00:05]} 3. Nf3 {[%emt 0:00:03]} d5 {[%emt 0:00:17]} 4. Nc3 {[%emt 0:00:04]} c5 {[%emt 0:00:34]} 5. cxd5 {[%emt 0:00:05]} exd5 {[%emt 0:00:06]} 6. g3 {[%emt 0:00:05]} Nc6 {[%emt 0:00:11]} 7. Bg2 {[%emt 0:00:04]} cxd4 {[%emt 0:00:06]} 8. Nxd4 {[%emt 0:00:04]} Bc5 {[%emt 0:00:10]} 9. Nxc6 {[%emt 0:11:54]} bxc6 {[%emt 0:00:08]} 10. O-O {[%emt 0:00:04]} O-O {[%emt 0:00:17]} 11. Qc2 {[%emt 0:01:01]} Bb6 {[%emt 0:00:54]} 12. Na4 {[%emt 0:01:34]} Bb7 {[%emt 0:07:00]} 13. Nc5 {[%emt 0:22:21]} Qe7 {[%emt 0:03:23]} 14. Nxb7 {[%emt 0:02:38]} Qxb7 {[%emt 0:07:56]} 15. b3 {[%emt 0:00:30]} Rfe8 {[%emt 0:00:39]} 16. Bb2 {[%emt 0:06:10]} Ne4 {[%emt 0:00:16]} 17. e3 {[%emt 0:00:16]} Qd7 {[%emt 0:07:59]} 18. Rfd1 {[%emt 0:06:27]} f5 {[%emt 0:01:38]} 19. Bd4 {[%emt 0:04:00]} Qe6 {[%emt 0:02:31]} 20. b4 {[%emt 0:03:07]} Bxd4 {[%emt 0:01:13]} 21. Rxd4 {[%emt 0:00:50]} a5 {[%emt 0:00:16]} 22. Bxe4 {[%emt 0:00:57]} fxe4 {[%emt 0:00:56]} 23. b5 {[%emt 0:01:23]} cxb5 {[%emt 0:04:06]} 24. Qb3 {[%emt 0:00:47]} b4 {[%emt 0:01:17]} 25. Rad1 {[%emt 0:04:09]} (25. Qxd5 Qxd5 26. Rxd5 Rec8 $15) 25... h6 {[%emt 0:02:24]} 26. Rxd5 {[%emt 0:00:23]} Kh7 {[%emt 0:00:41]} 27. Qa4 {[%emt 0:02:50]} Qg4 {[%emt 0:00:51]} (27... Qa6 $11) 28. Rf1 $1 $16 {[%emt 0:13:39]} (28. Rxa5 $2 Rxa5 29. Qb3 Rxa2 $19) 28... Qh3 {[%emt 0:05:09]} (28... Rec8 $142) 29. Qb5 {[%emt 0:03:20]} (29. Rxa5 $16 Rab8 30. Qb3) 29... Re7 $11 {[%emt 0:05:32]} 30. Qc5 {[%emt 0:03:05]} Raa7 {[%emt 0:02:01]} 31. Rfd1 {[%emt 0:06:30]} Qg4 {[%emt 0:01:33]} 32. Rd8 {[%emt 0:01:04]} Rad7 {[%emt 0:01:33]} 33. Qc2 {[%emt 0:12:26]} (33. R1xd7 $11 {remains equal.} Rxd7 34. Rxd7 (34. Qxa5 $2 Qd1+ 35. Kg2 Rxd8 $19) 34... Qxd7 35. Qxa5) 33... Rxd1+ {[%emt 0:01:12]} (33... Qxd1+ $17 34. Qxd1 Rxd1+ 35. Rxd1 a4) 34. Rxd1 $11 {[%emt 0:00:01]} Rc7 {[%emt 0:02:14]} 35. Qxc7 {[%emt 0:00:32]} Qxd1+ {[%emt 0:00:07]} 36. Kg2 {[%emt 0:00:01]} Qd5 {[%emt 0:01:26]} 37. Qc2 {[%emt 0:00:39]} h5 {[%emt 0:00:49]} 38. h4 {[%emt 0:00:27]} Kg6 {[%emt 0:00:50]} 39. f3 {[%emt 0:02:21]} Qd3 {[%emt 0:01:33]} 40. Qc6+ {[%emt 0:00:01]} Kh7 {[%emt 0:00:14]} 41. fxe4 {[%emt 0:21:31]} (41. Qxe4+ $2 {perishes.} Qxe4 42. fxe4 a4 $19) 41... Qe2+ {[%emt 0:22:14]} 42. Kh1 {[%emt 0:03:00]} Qxa2 {[%emt 0:03:38]} 43. Qb5 {[%emt 0:00:00]} Qb1+ {[%emt 0:00:00]} 44. Kh2 $1 {[%emt 0:00:00]} Qc2+ {[%emt 0:00:00]} (44... Qxe4 45. Qxh5+ Kg8 46. Qxa5 $15) 45. Kh3 {[%emt 0:00:00]} Qc8+ {[%emt 0:00:00]} 46. Kh2 {[%emt 0:00:00]} g6 {[%emt 0:00:00]} ({Don't take} 46... Qc2+ 47. Kh3 $17) 47. Qxa5 {[%emt 0:00:00]} Qc2+ {[%emt 0:00:00]} 48. Kg1 {[%emt 0:00:00]} Qxe4 {[%emt 0:00:00]} 49. Qa7+ {[%emt 0:00:00]} Kh6 {[%emt 0:00:00]} 50. Qb8 {[%emt 0:00:00]} (50. Qf7 $11) 50... Qxe3+ $17 {[%emt 0:00:00]} 51. Kg2 {[%emt 0:00:00] [#]} Qe4+ {[%emt 0:00:00]} (51... Qd2+ $1 $17 52. Kh3 Kg7 53. Qb7+ Kf6 54. Qc6+ Kg7 55. Qb7+) 52. Kh2 $15 {[%emt 0:00:00]} Kg7 {[%emt 0:00:00]} 53. Qb6 $2 {[%emt 0:00:00][%mdl 8192]} (53. Qc7+ $15 Kf8 54. Qb8+ Kf7 55. Qc7+ Ke6 56. Qc5) 53... Qc2+ $19 {[%emt 0:01:53]} 54. Kh3 $2 {[%emt 0:00:00] [#]} (54. Kg1 b3 55. Qd4+ Kf7 56. g4 hxg4 57. Qf4+ Ke7 58. Qb4+ Kf6 59. Qf4+ Qf5 60. Qd6+ Qe6 61. Qf4+ Ke7 62. Qc7+ Kf8 63. Qd8+ Kg7 64. Qd4+ Qf6 65. Qa7+ Qf7 66. Qd4+ Kg8 67. Kh2) 54... Qc4 $1 $19 {[%emt 0:02:08]} 55. Qb7+ {[%emt 0:00:45]} Kf6 {[%emt 0:00:12]} 56. Qb8 {[%emt 0:00:49]} Qe6+ {[%emt 0:00:49]} 57. Kg2 {[%emt 0:00:12]} b3 {[%emt 0:00:13]} 58. Qf8+ $2 {[%emt 0:00:26]} (58. Qf4+ Kg7 59. Qd4+ Qf6 60. Qa7+ Qf7 61. Qd4+ Kg8 62. Qb4) 58... Ke5 $19 {[%emt 0:00:20]} 59. Qf4+ {[%emt 0:02:33]} Kd5 {[%emt 0:00:10]} 60. Qd2+ {[%emt 0:00:02]} Kc4 {[%emt 0:02:13]} 61. Qf4+ {[%emt 0:00:02]} Kd3 {[%emt 0:00:47]} 62. Qf3+ {[%emt 0:00:38]} Kd2 {[%emt 0:01:57]} 63. Qf4+ {[%emt 0:00:14]} Qe3 {[%emt 0:00:57]} 64. Qb4+ {[%emt 0:00:59]} Kd1 {[%emt 0:00:43]} 65. Qa4 {[%emt 0:00:28]} Qe2+ {[%emt 0:01:09]} 66. Kg1 {[%emt 0:00:21]} Qe3+ {[%emt 0:02:22]} 67. Kg2 {[%emt 0:00:11]} Qd3 {[%emt 0:01:02]} 68. Kh3 {[%emt 0:02:52]} Ke2 {[%emt 0:01:53]} 69. Qb4 {[%emt 0:00:23]} Qf5+ {[%emt 0:00:57]} 70. Kh2 {[%emt 0:00:02]} Qc2 {[%emt 0:00:08]} 71. Kh3 {[%emt 0:00:37]} b2 {[%emt 0:01:35]} 72. Qb5+ {[%emt 0:00:42]} Kf2 {[%emt 0:01:13]} 73. Qb6+ {[%emt 0:00:16]} Kf1 {[%emt 0:00:19]} 74. Qa6+ {[%emt 0:03:43]} Kg1 {[%emt 0:00:33]} 75. Qb6+ {[%emt 0:00:28]} Qf2 {[%emt 0:00:14]} 0-1

[Event "35th Staufer-Open-A 2025"]
[Site "Schwaebisch Gmuend"]
[Date "2025.01.05"]
[Round "8.12"]
[White "Boder, Jan"]
[Black "Sydykov, Bayastan"]
[Result "1/2-1/2"]
[ECO "A20"]
[WhiteElo "2324"]
[BlackElo "2221"]
[Annotator "TA"]
[PlyCount "39"]
[EventDate "2024.11.24"]
[EventType "swiss"]
[EventCountry "GER"]
[SourceTitle "playchess.com"]
[Source "ChessBase"]
[SourceQuality "1"]
[TimeControl "40/6000+30:1200+30"]

{[%evp 9,39,0,-1,4,15,0,0,0,0,0,0,0,0,0,0,0,0,0,0,0,0,0,0,-4,-11,-5,0,-13,-11,-107,31,-45]} 1. c4 {[%emt 0:00:16]} e5 {[%emt 0:00:06]} 2. g3 {[%emt 0:01:14]} Nf6 {[%emt 0:00:06]} 3. Bg2 {[%emt 0:00:07]} c6 {[%emt 0:00:06]} 4. d4 {[%emt 0:01:10][%cal Bd2d4,Bd4d5][%mdl 32]} e4 {[%emt 0:00:07]} 5. d5 {[%emt 0:01:42]} Bb4+ {[%emt 0:00:05]} 6. Bd2 {[%emt 0:00:19]} Qe7 {[%emt 0:00:06]} 7. Nc3 {[%emt 0:00:42]} O-O {[%emt 0:00:16]} 8. Nh3 {[%emt 0:01:30]} cxd5 {[%emt 0:00:22]} 9. cxd5 {[%emt 0:00:59]} d6 {[%emt 0:00:06]} 10. Nxe4 {[%emt 0:01:01]} Bxh3 $1 {[%emt 0:00:05]} 11. Nxf6+ {[%emt 0:00:23]} Qxf6 {[%emt 0:00:06]} 12. Bxh3 {[%emt 0:00:19]} Qxb2 {[%emt 0:00:04]} 13. Bxb4 {[%emt 0:00:09]} Qxb4+ {[%emt 0:00:04]} 14. Qd2 {[%emt 0:00:07]} Qxd2+ {[%emt 0:00:03]} 15. Kxd2 {[%emt 0:00:05]} Na6 {[%emt 0:00:20]} 16. e4 {[%emt 0:01:06]} Nc5 {[%emt 0:00:33]} 17. Rhe1 {[%emt 0:02:11]} Rae8 {[%emt 0:00:25]} 18. f3 {[%emt 0:01:52]} Re5 {[%emt 0:01:23]} 19. Rac1 {[%emt 0:10:54]} (19. Re2 $11) 19... Kh8 {[%emt 0:00:17]} (19... Rh5 $17 20. Bf1 Rxh2+ 21. Re2 Rxe2+ 22. Bxe2 Re8) 20. Kc3 {[%emt 0:00:01]} (20. Bg2 $14) 1/2-1/2